fUST/lending_fUST_20240225
["ID","MTS","AMOUNT","RATE_DAILY","PERIOD"]
[315107802,1708828242750,-500.73842108,0.00019452,2]
[315107803,1708828242760,-500.0,0.00019452,2]
[315107804,1708828242770,-500.85659771,0.00019452,2]
[315107805,1708828242785,-494.40301834,0.00019452,2]
[315107806,1708828242796,-500.0,0.00019452,2]
[315107807,1708828242807,-500.92486461,0.00019452,2]
[315107808,1708828242818,-500.0,0.00019452,2]
[315107809,1708828242830,-500.0,0.00019452,2]
[315107810,1708828242841,-501.56038657,0.00019452,2]
[315107811,1708828242850,-500.0,0.00019452,2]
[315107813,1708828242860,-606.01698324,0.00019452,2]
[315107815,1708828242871,-500.91936856,0.00019452,2]
[315107817,1708828242883,-647.34,0.00019452,2]
[315107819,1708828242893,-500.0,0.00019452,2]
[315107821,1708828242904,-500.52111354,0.00019452,2]
[315107822,1708828242914,-500.0,0.00019452,2]
[315107823,1708828242924,-500.0,0.00019452,2]
[315107824,1708828242934,-500.0,0.00019452,2]
[315107825,1708828242943,-515.66855619,0.00019452,2]
[315107826,1708828242953,-500.0,0.00019452,2]
[315107827,1708828242963,-500.0,0.00019452,2]
[315107828,1708828242973,-502.02734652,0.00019452,2]
[315107830,1708828242982,-502.81502329,0.00019452,2]
[315107832,1708828242991,-500.0,0.00019452,2]
[315107833,1708828243001,-500.0,0.00019452,2]
[315107834,1708828243014,-500.0,0.00019452,2]
[315107836,1708828243025,-500.0,0.00019452,2]
[315107837,1708828243036,-500.4561624,0.00019452,2]
[315107838,1708828243047,-500.0,0.00019452,2]
[315107839,1708828243056,-500.0,0.00019452,2]
[315107841,1708828243066,-500.5220926,0.00019452,2]
[315107842,1708828243075,-500.50294023,0.00019452,2]
[315107843,1708828243084,-500.0,0.00019452,2]
[315107844,1708828243094,-500.0,0.00019452,2]
[315107845,1708828243105,-500.0,0.00019452,2]
[315107846,1708828243114,-500.0,0.00019452,2]
[315107847,1708828243124,-285.05808848,0.00019452,2]
[315107848,1708828243132,-151.0,0.00019452,2]
[315107849,1708828243142,-504.88602247,0.00019452,2]
[315107850,1708828243151,-500.0,0.00019452,2]
[315107851,1708828243160,-500.36361747,0.00019452,2]
[315107852,1708828243169,-481.22510241,0.00019452,2]
[315107853,1708828243178,-500.0,0.00019452,2]
[315107854,1708828243188,-500.0,0.00019452,2]
[315107855,1708828243197,-500.30920183,0.00019452,2]
[315107856,1708828243206,-500.71978356,0.00019452,2]
[315107857,1708828243215,-500.0,0.00019452,2]
[315107858,1708828243225,-501.73727444,0.00019452,2]
[315107859,1708828243235,-495.59120605,0.00019452,2]
[315107860,1708828243244,-500.33518309,0.00019452,2]
[315107861,1708828243254,-500.29968996,0.00019452,2]
[315107862,1708828243263,-500.37846823,0.00019452,2]
[315107863,1708828243272,-563.57,0.00019452,2]
[315107864,1708828243286,-500.0,0.00019452,2]
[315107865,1708828243296,-454.64032392,0.00019452,2]
[315107866,1708828243305,-499.6293671,0.00019452,2]
[315107867,1708828243315,-500.0,0.00019452,2]
[315107868,1708828243324,-500.0,0.00019452,2]
[315107869,1708828243333,-575.51,0.00019452,2]
[315107870,1708828243342,-500.44502459,0.00019452,2]
[315107871,1708828243351,-500.55726059,0.00019452,2]
[315107872,1708828243360,-1090.89,0.00019452,2]
[315107873,1708828243370,-500.0,0.00019452,2]
[315107874,1708828243379,-500.3023898,0.00019452,2]
[315107875,1708828243388,-500.0,0.00019452,2]
[315107876,1708828243398,-500.0,0.00019452,2]
[315107877,1708828243408,-501.02582955,0.00019452,2]
[315107878,1708828243419,-502.14121956,0.00019452,2]
[315107879,1708828243428,-281.21571745,0.00019452,2]
[315107880,1708828243437,-500.56043297,0.00019452,2]
[315107881,1708828243447,-470.59177166,0.00019452,2]
[315107882,1708828243457,-500.0,0.00019452,2]
[315107883,1708828243467,-500.0,0.00019452,2]
[315107884,1708828243477,-500.0,0.00019452,2]
[315107885,1708828243487,-500.0,0.00019452,2]
[315107886,1708828243497,-1004.11866743,0.00019452,2]
[315107887,1708828243507,-500.0,0.00019452,2]
[315107888,1708828243516,-406.24967505,0.00019452,2]
[315107889,1708828243526,-500.0,0.00019452,2]
[315107890,1708828243536,-500.34794336,0.00019452,2]
[315107891,1708828243545,-500.0,0.00019452,2]
[315107892,1708828243555,-500.0,0.00019452,2]
[315107893,1708828243565,-502.61238656,0.00019452,2]
[315107894,1708828243575,-500.40221559,0.00019452,2]
[315107895,1708828243585,-500.0,0.00019452,2]
[315107896,1708828243594,-501.71590882,0.00019452,2]
[315107897,1708828243604,-421.01270077,0.00019452,2]
[315107898,1708828243614,-500.0,0.00019452,2]
[315107899,1708828243624,-500.0,0.00019452,2]
[315107901,1708828243633,-500.80513381,0.00019452,2]
[315107903,1708828243643,-500.0,0.00019452,2]
[315107904,1708828243654,-500.0,0.00019452,2]
[315107905,1708828243664,-1959.19,0.00019452,2]
[315107906,1708828243675,-501.39640483,0.00019452,2]
[315107907,1708828243684,-500.0,0.00019452,2]
[315107908,1708828243694,-500.0,0.00019452,2]
[315107909,1708828243704,-500.0,0.00019452,2]
[315107910,1708828243835,-942.22,0.00019452,2]
[315107911,1708828243846,-500.0,0.00019452,2]
[315107912,1708828243856,-500.0,0.00019452,2]
[315107913,1708828243866,-500.0,0.00019452,2]
[315107914,1708828243875,-500.0,0.00019452,2]
[315107915,1708828243884,-500.50786115,0.00019452,2]
[315107916,1708828243893,-1783.62,0.00019452,2]
[315107917,1708828243902,-503.59319425,0.00019452,2]
[315107918,1708828243911,-230.13455929,0.00019452,2]
[315107919,1708828243920,-500.0,0.00019452,2]
[315107920,1708828243929,-500.0,0.00019452,2]
[315107921,1708828243939,-500.0,0.00019452,2]
[315107923,1708828243948,-500.0,0.00019452,2]
[315107924,1708828243957,-500.66949718,0.00019452,2]
[315107926,1708828243967,-500.0,0.00019452,2]
[315107927,1708828243976,-500.0,0.00019452,2]
[315107928,1708828243985,-500.0,0.00019452,2]
[315107929,1708828243994,-500.0,0.00019452,2]
[315107930,1708828244003,-500.59452776,0.00019452,2]
[315107931,1708828244014,-589.1944947,0.00019452,2]
[315107932,1708828244023,-500.80825638,0.00019452,2]
[315107933,1708828244035,-500.89176802,0.00019452,2]
[315107934,1708828244044,-173.44402135,0.00019452,2]
[315107935,1708828244053,-500.0,0.00019452,2]
[315107936,1708828244062,-354.10599002,0.00019452,2]
[315107937,1708828244072,-501.00951966,0.00019452,2]
[315107938,1708828244081,-501.59084194,0.00019452,2]
[315107939,1708828244090,-500.51089973,0.00019452,2]
[315107940,1708828244099,-500.0,0.00019452,2]
[315107941,1708828244109,-500.36338572,0.00019452,2]
[315107942,1708828244117,-500.46925039,0.00019452,2]
[315107943,1708828244126,-500.0,0.00019452,2]
[315107944,1708828244136,-500.47297557,0.00019452,2]
[315107945,1708828244145,-355.86350824,0.00019452,2]
[315107946,1708828244155,-501.35115534,0.00019452,2]
[315107947,1708828244164,-500.71610009,0.00019452,2]
[315107948,1708828244173,-500.0,0.00019452,2]
[315107949,1708828244182,-391.22819217,0.00019452,2]
[315107950,1708828244192,-1176.31,0.00019452,2]
[315107951,1708828244201,-500.0,0.00019452,2]
[315107952,1708828244211,-501.84296637,0.00019452,2]
[315107953,1708828244221,-1609.09,0.00019452,2]
[315107954,1708828244230,-500.78207553,0.00019452,2]
[315107955,1708828244240,-500.0,0.00019452,2]
[315107956,1708828244249,-500.0,0.00019452,2]
[315107957,1708828244259,-500.0,0.00019452,2]
[315107958,1708828244269,-929.0,0.00019452,2]
[315107959,1708828244280,-1043.36,0.00019452,2]
[315107960,1708828244290,-500.0,0.00019452,2]
[315107961,1708828244299,-501.17275672,0.00019452,2]
[315107962,1708828244308,-1248.48,0.00019452,2]
[315107963,1708828244318,-500.53322629,0.00019452,2]
[315107964,1708828244327,-500.0,0.00019452,2]
[315107965,1708828244337,-501.91005166,0.00019452,2]
[315107966,1708828244346,-500.0,0.00019452,2]
[315107967,1708828244355,-500.0,0.00019452,2]
[315107968,1708828244364,-500.0,0.00019452,2]
[315107969,1708828244373,-1611.78,0.00019452,2]
[315107970,1708828244382,-500.0,0.00019452,2]
[315107971,1708828244392,-500.83188947,0.00019452,2]
[315107972,1708828244401,-500.0,0.00019452,2]
[315107973,1708828244410,-502.24533247,0.00019452,2]
[315107974,1708828244419,-500.0,0.00019452,2]
[315107975,1708828244429,-500.0,0.00019452,2]
[315107976,1708828244438,-501.62472493,0.00019452,2]
[315107977,1708828244447,-1105.75,0.00019452,2]
[315107978,1708828244457,-500.0,0.00019452,2]
[315107979,1708828244466,-503.94726218,0.00019452,2]
[315107980,1708828244475,-501.31282411,0.00019452,2]
[315107981,1708828244485,-501.11618932,0.00019452,2]
[315107982,1708828244494,-500.0,0.00019452,2]
[315107983,1708828244503,-500.0,0.00019452,2]
[315107984,1708828244513,-1414.12,0.00019452,2]
[315107985,1708828244523,-403.61859012,0.00019452,2]
[315107986,1708828244535,-7810.53,0.00019452,2]
[315107987,1708828244543,-518.08991757,0.00019452,2]
[315107988,1708828244553,-500.0,0.00019452,2]
[315107989,1708828244562,-500.0,0.00019452,2]
[315107990,1708828244571,-9338.08,0.00019452,2]
[315107991,1708828244580,-500.53058882,0.00019452,2]
[315107992,1708828244589,-500.0,0.00019452,2]
[315107993,1708828244598,-500.0,0.00019452,2]
[315107994,1708828244608,-500.58015319,0.00019452,2]
[315107995,1708828244617,-500.42437072,0.00019452,2]
[315107996,1708828244627,-482.96851465,0.00019452,2]
[315107997,1708828244637,-1937.6,0.00019452,2]
[315107998,1708828244646,-500.0,0.00019452,2]
[315107999,1708828244656,-500.0,0.00019452,2]
[315108000,1708828244667,-500.69603804,0.00019452,2]
[315108001,1708828244676,-500.0,0.00019452,2]
[315108002,1708828244686,-500.0,0.00019452,2]
[315108003,1708828244697,-500.0,0.00019452,2]
[315108004,1708828244707,-5745.19,0.00019452,2]
[315108005,1708828244716,-500.0,0.00019452,2]
[315108006,1708828244725,-500.0,0.00019452,2]
[315108007,1708828244735,-500.0,0.00019452,2]
[315108008,1708828244746,-500.0,0.00019452,2]
[315108009,1708828244755,-500.66148931,0.00019452,2]
[315108010,1708828244765,-500.0,0.00019452,2]
[315108011,1708828244774,-500.0,0.00019452,2]
[315108012,1708828244784,-271.13683731,0.00019452,2]
[315108013,1708828244794,-2553.98,0.00019452,2]
[315108014,1708828244802,-500.87514147,0.00019452,2]
[315108015,1708828244811,-500.0,0.00019452,2]
[315108016,1708828244821,-500.46753827,0.00019452,2]
[315108017,1708828244830,-500.0,0.00019452,2]
[315108018,1708828244839,-500.0,0.00019452,2]
[315108019,1708828244850,-500.0,0.00019452,2]
[315108020,1708828244859,-760.81,0.00019452,2]
[315108021,1708828244869,-729.29,0.00019452,2]
[315108022,1708828244879,-500.0,0.00019452,2]
[315108023,1708828244888,-198.35839426,0.00019452,2]
[315108024,1708828244897,-500.0,0.00019452,2]
[315108025,1708828244906,-500.0,0.00019452,2]
[315108026,1708828244915,-501.86428747,0.00019452,2]
[315108027,1708828244925,-3559.22,0.00019452,2]
[315108028,1708828244936,-500.0,0.00019452,2]
[315108029,1708828244945,-1633.32,0.00019452,2]
[315108030,1708828244955,-500.0,0.00019452,2]
[315108031,1708828244964,-716.21,0.00019452,2]
[315108032,1708828244974,-540.76,0.00019452,2]
[315108033,1708828244983,-6647.46,0.00019452,2]
[315108034,1708828244992,-500.0,0.00019452,2]
[315108035,1708828245001,-500.0,0.00019452,2]
[315108036,1708828245011,-500.0,0.00019452,2]
[315108037,1708828245021,-794.75,0.00019452,2]
[315108038,1708828245032,-1251.59,0.00019452,2]
[315108039,1708828245042,-1747.6,0.00019452,2]
[315108040,1708828245050,-500.0,0.00019452,2]
[315108041,1708828245060,-199.95068966,0.00019489,2]
[315108042,1708828245069,-923.56,0.00019505,2]
[315108043,1708828245079,-500.0,0.00019506,2]
[315108044,1708828245088,-153.0,0.00019507,2]
[315108045,1708828245097,-153.0,0.00019507,2]
[315108046,1708828245106,-500.0,0.00019561,2]
[315108047,1708828245115,-153.0,0.000196,2]
[315108048,1708828245124,-500.0,0.00019616,2]
[315108049,1708828245133,-500.0,0.00019621,2]
[315108050,1708828245142,-2086.28077692,0.00019626,2]
[315108051,1708828245152,-166.666666,0.00019627,2]
[315108052,1708828245161,-306.7037249,0.00019644,2]
[315108053,1708828245171,-500.0,0.0001967,2]
[315108054,1708828245180,-500.0,0.00019697,2]
[315108055,1708828245189,-500.0,0.00019697,2]
[315108056,1708828245198,-821.268,0.00019698,2]
[315108057,1708828245207,-821.269,0.00019698,2]
[315108058,1708828245216,-821.268,0.00019698,2]
[315108059,1708828245226,-821.269,0.00019698,2]
[315108060,1708828245235,-821.268,0.00019698,2]
[315108061,1708828245244,-153.0,0.000197,2]
[315108062,1708828245253,-153.0,0.000197,2]
[315108063,1708828245262,-923.56,0.00019725,2]
[315108064,1708828245271,-923.56,0.00019725,2]
[315108065,1708828245282,-500.0,0.00019725,2]
[315108066,1708828245291,-500.0,0.00019725,2]
[315108067,1708828245300,-500.0,0.00019725,2]
[315108068,1708828245309,-500.0,0.00019726,2]
[315108069,1708828245319,-500.0,0.00019726,2]
[315108070,1708828245329,-504.73236204,0.00019726,2]
[315108071,1708828245338,-500.0,0.00019726,2]
[315108072,1708828245348,-503.7945733,0.00019726,2]
[315108073,1708828245357,-182.76465336,0.00019726,2]
[315108074,1708828245367,-647.34,0.00019726,2]
[315108075,1708828245376,-500.0,0.00019726,2]
[315108076,1708828245385,-549.86653924,0.00019726,2]
[315108077,1708828245395,-500.0,0.00019726,2]
[315108078,1708828245405,-500.0,0.00019726,2]
[315108079,1708828245415,-500.0,0.00019726,2]
[315108080,1708828245424,-504.44208743,0.00019726,2]
[315108081,1708828245433,-501.73593943,0.00019726,2]
[315108082,1708828245443,-500.0,0.00019726,2]
[315108083,1708828245452,-500.0,0.00019726,2]
[315108084,1708828245461,-502.14780362,0.00019726,2]
[315108085,1708828245470,-500.0,0.00019726,2]
[315108086,1708828245479,-501.74987648,0.00019726,2]
[315108087,1708828245489,-503.97375337,0.00019726,2]
[315108088,1708828245499,-501.59626251,0.00019726,2]
[315108089,1708828245508,-500.0,0.00019726,2]
[315108090,1708828245518,-641.20036604,0.00019726,2]
[315108091,1708828245528,-151.0,0.00019726,2]
[315108092,1708828245537,-500.0,0.00019726,2]
[315108093,1708828245546,-524.20214721,0.00019726,2]
[315108094,1708828245555,-500.0,0.00019726,2]
[315108095,1708828245564,-500.0,0.00019726,2]
[315108096,1708828245574,-563.57,0.00019726,2]
[315108097,1708828245583,-500.0,0.00019726,2]
[315108098,1708828245593,-500.0,0.00019726,2]
[315108099,1708828245602,-490.21714662,0.00019726,2]
[315108100,1708828245611,-575.51,0.00019726,2]
[315108101,1708828245620,-1090.89,0.00019726,2]
[315108102,1708828245630,-500.0,0.00019726,2]
[315108103,1708828245639,-500.0,0.00019726,2]
[315108104,1708828245648,-258.94286417,0.00019726,2]
[315108105,1708828245659,-500.0,0.00019726,2]
[315108106,1708828245669,-179.26758643,0.00019726,2]
[315108107,1708828245677,-500.0,0.00019726,2]
[315108108,1708828245686,-500.0,0.00019726,2]
[315108109,1708828245697,-260.17021376,0.00019726,2]
[315108110,1708828245706,-500.0,0.00019726,2]
[315108111,1708828245715,-500.0,0.00019726,2]
[315108112,1708828245725,-500.0,0.00019726,2]
[315108113,1708828245734,-500.0,0.00019726,2]
[315108114,1708828245745,-500.0,0.00019726,2]
[315108115,1708828245764,-500.0,0.00019726,2]
[315108116,1708828245775,-1959.19,0.00019726,2]
[315108117,1708828245785,-500.0,0.00019726,2]
[315108118,1708828245794,-500.0,0.00019726,2]
[315108119,1708828245804,-942.22,0.00019726,2]
[315108120,1708828245813,-500.0,0.00019726,2]
[315108121,1708828245823,-501.64163409,0.00019726,2]
[315108122,1708828245832,-500.0,0.00019726,2]
[315108123,1708828245841,-500.79353495,0.00019726,2]
[315108124,1708828245851,-1783.62,0.00019726,2]
[315108125,1708828245860,-265.34682252,0.00019726,2]
[315108126,1708828245870,-500.0,0.00019726,2]
[315108127,1708828245879,-507.5916589,0.00019726,2]
[315108128,1708828245888,-500.0,0.00019726,2]
[315108129,1708828245897,-500.0,0.00019726,2]
[315108130,1708828245906,-500.0,0.00019726,2]
[315108131,1708828245915,-500.0,0.00019726,2]
[315108132,1708828245924,-500.0,0.00019726,2]
[315108133,1708828245934,-500.0,0.00019726,2]
[315108134,1708828245944,-500.0,0.00019726,2]
[315108135,1708828245954,-500.0,0.00019726,2]
[315108136,1708828245963,-1176.31,0.00019726,2]
[315108137,1708828245974,-500.0,0.00019726,2]
[315108138,1708828245983,-1609.09,0.00019726,2]
[315108139,1708828245994,-500.0,0.00019726,2]
[315108140,1708828246003,-500.0,0.00019726,2]
[315108141,1708828246014,-929.0,0.00019726,2]
[315108142,1708828246024,-1043.36,0.00019726,2]
[315108143,1708828246034,-500.0,0.00019726,2]
[315108144,1708828246044,-1248.48,0.00019726,2]
[315108145,1708828246053,-500.0,0.00019726,2]
[315108146,1708828246063,-500.0,0.00019726,2]
[315108147,1708828246073,-183.33184604,0.00019726,2]
[315108148,1708828246082,-500.0,0.00019726,2]
[315108149,1708828246091,-1611.78,0.00019726,2]
[315108150,1708828246102,-500.0,0.00019726,2]
[315108151,1708828246111,-500.0,0.00019726,2]
[315108152,1708828246120,-500.0,0.00019726,2]
[315108153,1708828246130,-500.0,0.00019726,2]
[315108154,1708828246139,-1105.75,0.00019726,2]
[315108155,1708828246149,-500.0,0.00019726,2]
[315108156,1708828246158,-500.0,0.00019726,2]
[315108157,1708828246168,-501.89164218,0.00019726,2]
[315108158,1708828246178,-1414.12,0.00019726,2]
[315108159,1708828246187,-7810.53,0.00019726,2]
[315108160,1708828246196,-500.0,0.00019726,2]
[315108161,1708828246208,-501.56703344,0.00019726,2]
[315108162,1708828246217,-9338.08,0.00019726,2]
[315108163,1708828246226,-500.0,0.00019726,2]
[315108164,1708828246235,-500.0,0.00019726,2]
[315108165,1708828246245,-1937.6,0.00019726,2]
[315108166,1708828246255,-180.87318181,0.00019726,2]
[315108167,1708828246264,-500.0,0.00019726,2]
[315108168,1708828246273,-500.0,0.00019726,2]
[315108169,1708828246284,-500.0,0.00019726,2]
[315108170,1708828246294,-500.0,0.00019726,2]
[315108171,1708828246303,-5745.19,0.00019726,2]
[315108172,1708828246436,-500.0,0.00019726,2]
[315108173,1708828246445,-500.0,0.00019726,2]
[315108174,1708828246454,-500.0,0.00019726,2]
[315108175,1708828246463,-500.0,0.00019726,2]
[315108176,1708828246473,-500.0,0.00019726,2]
[315108177,1708828246482,-500.0,0.00019726,2]
[315108178,1708828246491,-2553.98,0.00019726,2]
[315108179,1708828246501,-263.24815423,0.00019726,2]
[315108180,1708828246510,-500.0,0.00019726,2]
[315108181,1708828246520,-238.46277317,0.00019726,2]
[315108182,1708828246530,-500.0,0.00019726,2]
[315108183,1708828246540,-760.81,0.00019726,2]
[315108184,1708828246550,-729.29,0.00019726,2]
[315108185,1708828246559,-218.09564427,0.00019726,2]
[315108186,1708828246568,-500.0,0.00019726,2]
[315108187,1708828246577,-500.0,0.00019726,2]
[315108188,1708828246586,-3559.22,0.00019726,2]
[315108189,1708828246595,-500.0,0.00019726,2]
[315108190,1708828246605,-1633.32,0.00019726,2]
[315108191,1708828246614,-500.0,0.00019726,2]
[315108192,1708828246623,-716.21,0.00019726,2]
[315108193,1708828246632,-540.76,0.00019726,2]
[315108194,1708828246642,-6647.46,0.00019726,2]
[315108195,1708828246654,-500.0,0.00019726,2]
[315108196,1708828246663,-501.0532542,0.00019726,2]
[315108197,1708828246672,-501.52053868,0.00019726,2]
[315108198,1708828246681,-794.75,0.00019726,2]
[315108199,1708828246691,-1251.59,0.00019726,2]
[315108200,1708828246700,-1747.6,0.00019726,2]
[315108201,1708828246709,-500.0,0.00019726,2]
[315108202,1708828246718,-500.0,0.0001978,2]
[315108203,1708828246727,-500.0,0.00019835,2]
[315108204,1708828246738,-1005.37078822,0.00019849,2]
[315108205,1708828246748,-500.0,0.0001989,2]
[315108206,1708828246758,-500.0,0.00019895,2]
[315108207,1708828246767,-199.95068966,0.000199,2]
[315108208,1708828246778,-306.0,0.00019918,2]
[315108209,1708828246787,-153.8356332,0.00019918,2]
[315108210,1708828246796,-389.9551491,0.00019918,2]
[315108211,1708828246805,-386.4969218,0.00019918,2]
[315108212,1708828246814,-500.0,0.00019944,2]
[315108213,1708828246823,-274.37951668,0.00019998,2]
[315108214,1708828246833,-317.61983637,0.00019998,2]
[315108216,1708828246843,-745.13367533,0.00019998,2]
[315108217,1708828246852,-155.6061696,0.00019998,2]
[315108218,1708828246861,-923.56,0.00019998,2]
[315108219,1708828246870,-500.0,0.00019998,2]
[315108220,1708828246880,-500.0,0.00019998,2]
[315108221,1708828246889,-1266.7840824,0.00019999,2]
[315108222,1708828246898,-923.56,0.00019999,2]
[315108223,1708828246907,-923.56,0.00019999,2]
[315108224,1708828246916,-923.56,0.00019999,2]
[315108225,1708828246925,-923.56,0.00019999,2]
[315108226,1708828246934,-923.56,0.00019999,2]
[315108227,1708828246943,-923.56,0.00019999,2]
[315108228,1708828246953,-923.56,0.00019999,2]
[315108229,1708828246962,-923.71272049,0.00019999,2]
[315108230,1708828246971,-500.0,0.00019999,2]
[315108231,1708828246980,-500.0,0.00019999,2]
[315108232,1708828246990,-282.34775676,0.00019999,2]
[315108233,1708828246999,-500.0,0.00019999,2]
[315108235,1708828247009,-500.0,0.00019999,2]
[315108236,1708828247018,-500.0,0.00019999,2]
[315108237,1708828247029,-500.0,0.00019999,2]
[315108238,1708828247040,-500.0,0.00019999,2]
[315108239,1708828247048,-500.0,0.00019999,2]
[315108240,1708828247058,-179.4964323,0.00019999,2]
[315108241,1708828247067,-194.77953548,0.00019999,2]
[315108242,1708828247077,-152.54905509,0.00019999,2]
[315108243,1708828247085,-797579.16200329,0.0002,2]
[315108244,1708828247387,-502.45733629,0.00019178,2]
[315108245,1708828247397,-1689.59430979,0.0002,2]
[315108246,1708828247409,-1483.80086926,0.0002,2]
[315108247,1708828247434,-5204.99999955,0.0002,2]
[315108248,1708828247820,-23.96266295,0.0002,2]
[315108249,1708828248061,-165420.60115386,0.0002,2]
[315108250,1708828248197,-576.20798546,0.0002,2]
[315108268,1708829124563,220.2790737,0.00017936,2]
[315108269,1708829219173,1741.3906421,0.00017936,2]
[315108270,1708829237122,-640.11979573,0.00018106,2]
[315108271,1708829237143,-300.0,0.00018107,2]
[315108272,1708829237163,-59.88020427,0.00018108,2]
[315108274,1708829348099,-154.8915759,0.00018107,2]
[315108275,1708829348120,-316.17716883,0.00018108,2]
[315108276,1708829348140,-24900.0,0.00018108,2]
[315108277,1708829348161,-81.32661358,0.00018249,2]
[315108278,1708829357106,-84.47062576,0.00018249,2]
[315108279,1708829357127,-415.52937424,0.000189,2]
[315108326,1708829432589,-186.82410363,0.000189,2]
[315108328,1708829432599,-504.71383362,0.000189,2]
[315108388,1708829441058,-2039.62972644,0.000189,2]
[315108390,1708829441070,-280.86267126,0.000189,2]
[315108391,1708829441082,-19163.90511899,0.000189,2]
[315108392,1708829441094,-56964.2367767,0.000189,2]
[315108393,1708829441102,-524.31760577,0.000189,2]
[315108394,1708829441111,-193.36879114,0.00019078,2]
[315108395,1708829441122,-204.65,0.00019168,3]
[315108396,1708829441131,-155.52322566,0.00019176,2]
[315108397,1708829441140,-677.415638,0.00019176,2]
[315108398,1708829441149,-572.67985729,0.00019176,2]
[315108399,1708829441158,-197.0,0.00019176,2]
[315108400,1708829441167,-999.6258381,0.00019177,2]
[315108401,1708829441176,-1518.81378183,0.00019177,2]
[315108402,1708829441185,-500.0,0.00019177,2]
[315108403,1708829441194,-498.02457607,0.00019178,2]
[315108404,1708829441204,-500.0,0.00019178,2]
[315108405,1708829441213,-498.19728098,0.00019178,2]
[315108406,1708829441222,-500.0,0.00019178,2]
[315108407,1708829441231,-500.0,0.00019178,2]
[315108408,1708829441239,-500.0,0.00019178,2]
[315108409,1708829441249,-500.0,0.00019178,2]
[315108410,1708829441258,-500.0,0.00019178,2]
[315108411,1708829441267,-500.0,0.00019178,2]
[315108412,1708829441276,-266.29835762,0.00019178,2]
[315108413,1708829441285,-500.0,0.00019178,2]
[315108414,1708829441296,-151.0,0.00019178,2]
[315108415,1708829441305,-500.0,0.00019178,2]
[315108416,1708829441314,-500.0,0.00019178,2]
[315108417,1708829441323,-500.0,0.00019178,2]
[315108418,1708829441331,-500.29968996,0.00019178,2]
[315108419,1708829441340,-500.0,0.00019178,2]
[315108420,1708829441350,-500.0,0.00019178,2]
[315108421,1708829441358,-500.0,0.00019178,2]
[315108422,1708829441367,-500.0,0.00019178,2]
[315108423,1708829441376,-500.0,0.00019178,2]
[315108424,1708829441387,-1112.19,0.00019178,2]
[315108425,1708829441396,-500.0,0.00019178,2]
[315108426,1708829441405,-500.0,0.00019178,2]
[315108427,1708829441415,-500.56043297,0.00019178,2]
[315108428,1708829441424,-540.09,0.00019178,2]
[315108429,1708829441433,-499.6293671,0.00019178,2]
[315108430,1708829441442,-500.0,0.00019178,2]
[315108431,1708829441451,-500.0,0.00019178,2]
[315108432,1708829441461,-500.44502459,0.00019178,2]
[315108433,1708829441471,-500.34794336,0.00019178,2]
[315108434,1708829441480,-500.3023898,0.00019178,2]
[315108435,1708829441489,-500.0,0.00019178,2]
[315108436,1708829441499,-500.0,0.00019178,2]
[315108437,1708829441508,-281.21571745,0.00019178,2]
[315108438,1708829441518,-500.80513381,0.00019178,2]
[315108439,1708829441527,-500.0,0.00019178,2]
[315108440,1708829441538,-500.0,0.00019178,2]
[315108441,1708829441548,-406.24967505,0.00019178,2]